fUST/lending_fUST_20251029
["ID","MTS","AMOUNT","RATE_DAILY","PERIOD"]
[392585792,1761694238477,-3325.01488307,0.00021494,2]
[392585793,1761694238487,-1851.34298426,0.00021503,2]
[392585794,1761694238497,-184.4665315,0.00021504,2]
[392585795,1761694238506,-500.0,0.00021504,2]
[392585796,1761694238516,-1000.0,0.00021504,2]
[392585797,1761694238526,-1000.0,0.00021504,2]
[392585798,1761694238535,-1000.0,0.00021504,2]
[392585799,1761694238545,-1000.0,0.00021504,2]
[392585800,1761694238555,-1000.0,0.00021504,2]
[392585801,1761694238565,-1000.0,0.00021504,2]
[392585802,1761694238575,-1000.0,0.00021504,2]
[392585803,1761694238588,-1000.0,0.00021504,2]
[392585804,1761694238598,-528.36822218,0.00021504,2]
[392585805,1761694238615,-250.0,0.00021504,2]
[392585806,1761694238625,-236.62000006,0.00021504,2]
[392585807,1761694238634,-350.1,0.00021507,3]
[392585808,1761694238644,-618.47,0.00021507,10]
[392585809,1761694238654,-1179.38,0.00021507,10]
[392585810,1761694238663,-982.82,0.00021507,10]
[392585811,1761694238673,-303.07689161,0.00021516,2]
[392585812,1761694238684,-260.12404341,0.00021516,2]
[392585813,1761694238695,-170.77623837,0.00021516,2]
[392585814,1761694238705,-500.0,0.00021516,2]
[392585815,1761694238713,-500.0,0.00021516,2]
[392585816,1761694238721,-180.69082394,0.00021516,2]
[392585817,1761694238729,-399.69492881,0.00021516,2]
[392585818,1761694238738,-500.0,0.00021516,2]
[392585819,1761694238747,-338.60146951,0.00021516,2]
[392585820,1761694238757,-86.87502781,0.00021516,2]
[392585821,1761694238769,-413.12497219,0.00021516,2]
[392585822,1761694238779,-644.95886054,0.00021516,2]
[392585823,1761694238788,-500.0,0.00021516,2]
[392585824,1761694238798,-500.0,0.00021516,2]
[392585825,1761694238807,-3566.46328739,0.00021517,2]
[392585826,1761694238822,-550.4499,0.00021517,2]
[392585861,1761694240633,-374.18,0.00021517,2]
[392585924,1761694243743,-18.61330711,0.00021517,2]
[392585934,1761694246636,-953.10162606,0.00021517,2]
[392585963,1761694301786,697.796138,0.00013699,2]
[392586006,1761696013010,378.25,0.000284,120]
[392586007,1761696091649,200.0,0.0002907,120]
[392586019,1761696331857,200.0,0.00027714,120]
[392586030,1761696391124,200.0,0.0003004,120]
[392586031,1761696441133,-155.38477508,0.00018444,5]
[392586032,1761696441153,-165.638025,0.0001863,2]
[392586033,1761696441173,-548.89965923,0.000187,2]
[392586034,1761696441193,-156.7262083,0.00019018,2]
[392586035,1761696441212,-226.500328,0.00020081,2]
[392586036,1761696441233,-5006.0,0.00020182,7]
[392586037,1761696441252,-697.796138,0.00020187,2]
[392586038,1761696441271,-252.4180119,0.00020536,2]
[392586039,1761696441289,-184.9369258,0.00021018,2]
[392586040,1761696441308,-300.0,0.00021311,2]
[392586041,1761696441327,-42574.50526737,0.00021312,2]
[392586042,1761696441345,-201.0,0.00021313,2]
[392586043,1761696441365,-1200.0,0.00021313,2]
[392586044,1761696441385,-300.0,0.00021313,2]
[392586045,1761696441552,-500.0,0.00021314,2]
[392586046,1761696441576,-500.0,0.00021314,2]
[392586047,1761696441597,-500.0,0.00021314,2]
[392586048,1761696441618,-500.0,0.00021314,2]
[392586049,1761696441639,-500.0,0.00021314,2]
[392586050,1761696441661,-500.0,0.00021314,2]
[392586051,1761696441683,-264.49588606,0.00021314,2]
[392586052,1761696441703,-500.0,0.00021314,2]
[392586053,1761696441724,-500.0,0.00021314,2]
[392586054,1761696441745,-500.0,0.00021314,2]
[392586055,1761696441766,-500.0,0.00021314,2]
[392586056,1761696441787,-500.0,0.00021314,2]
[392586057,1761696441808,-500.0,0.00021314,2]
[392586058,1761696441828,-267.46300037,0.00021314,2]
[392586059,1761696441850,-500.0,0.00021314,2]
[392586060,1761696441869,-1234.22865618,0.00021317,2]
[392586061,1761696441891,-184.4665315,0.00021317,2]
[392586062,1761696441912,-819.01,0.00021407,10]
[392586063,1761696441932,-682.51,0.00021407,10]
[392586064,1761696441951,-647.61,0.00021407,3]
[392586065,1761696441971,-235.08266549,0.00021407,2]
[392586066,1761696441993,-188.73347087,0.00021407,2]
[392586067,1761696442013,-2175.469391,0.00021408,2]
[392586068,1761696442037,-5876.590218,0.00021408,2]
[392586069,1761696442057,-2184.3901328,0.00021408,2]
[392586070,1761696442076,-854.1707655,0.00021408,2]
[392586071,1761696442097,-205.423072,0.00021408,7]
[392586072,1761696442117,-151.0,0.00021408,7]
[392586073,1761696442137,-196.874076,0.00021408,7]
[392586074,1761696442158,-151.0,0.00021408,7]
[392586075,1761696442177,-151.0,0.00021408,7]
[392586076,1761696442196,-193.459507,0.00021408,7]
[392586077,1761696442215,-193.459507,0.00021408,7]
[392586078,1761696442234,-193.459507,0.00021408,7]
[392586079,1761696442254,-193.459507,0.00021408,7]
[392586080,1761696442272,-151.0,0.00021408,7]
[392586081,1761696442291,-151.0,0.00021408,7]
[392586082,1761696442310,-151.0,0.00021408,7]
[392586083,1761696442330,-151.0,0.00021408,7]
[392586084,1761696442349,-151.0,0.00021408,7]
[392586085,1761696442368,-151.0,0.00021408,7]
[392586086,1761696442387,-151.0,0.00021408,7]
[392586087,1761696442406,-151.0,0.00021408,7]
[392586088,1761696442426,-151.0,0.00021408,7]
[392586089,1761696442455,-151.0,0.00021408,7]
[392586090,1761696442475,-151.0,0.00021408,7]
[392586091,1761696442494,-230.228771,0.00021408,7]
[392586092,1761696442513,-151.0,0.00021408,7]
[392586093,1761696442535,-151.0,0.00021408,7]
[392586094,1761696442556,-243.86536,0.00021408,7]
[392586095,1761696442576,-151.0,0.00021408,7]
[392586096,1761696442598,-151.0,0.00021408,7]
[392586097,1761696442620,-213.683836,0.00021408,7]
[392586098,1761696442640,-151.0,0.00021408,7]
[392586099,1761696442660,-151.0,0.00021408,7]
[392586100,1761696442682,-151.0,0.00021408,7]
[392586101,1761696442705,-151.0,0.00021408,7]
[392586102,1761696442725,-151.0,0.00021408,7]
[392586103,1761696442744,-151.0,0.00021408,7]
[392586104,1761696442764,-162.39314,0.00021408,7]
[392586105,1761696442783,-162.39314,0.00021408,7]
[392586106,1761696442803,-151.0,0.00021408,7]
[392586107,1761696442823,-162.39314,0.00021408,7]
[392586108,1761696442843,-162.39314,0.00021408,7]
[392586109,1761696442862,-162.39314,0.00021408,7]
[392586110,1761696442882,-162.39314,0.00021408,7]
[392586111,1761696442903,-162.39314,0.00021408,7]
[392586112,1761696442922,-162.39314,0.00021408,7]
[392586113,1761696442943,-151.0,0.00021408,7]
[392586114,1761696442966,-153.871084,0.00021408,7]
[392586115,1761696442986,-205.780423,0.00021408,7]
[392586116,1761696443006,-205.780423,0.00021408,7]
[392586117,1761696443030,-2265.868697,0.00021408,7]
[392586118,1761696443051,-205.780423,0.00021408,7]
[392586119,1761696443075,-2265.868697,0.00021408,7]
[392586120,1761696443097,-151.0,0.00021408,7]
[392586121,1761696443121,-205.780423,0.00021408,7]
[392586122,1761696443143,-2265.868697,0.00021408,7]
[392586123,1761696443166,-151.0,0.00021408,7]
[392586124,1761696443191,-2265.868697,0.00021408,7]
[392586125,1761696443214,-151.0,0.00021408,7]
[392586126,1761696443238,-151.0,0.00021408,7]
[392586127,1761696443259,-151.0,0.00021408,7]
[392586128,1761696443280,-151.0,0.00021408,7]
[392586129,1761696443302,-151.0,0.00021408,7]
[392586130,1761696443324,-151.0,0.00021408,7]
[392586131,1761696443348,-151.0,0.00021408,7]
[392586132,1761696443371,-151.0,0.00021408,7]
[392586133,1761696443391,-151.0,0.00021408,7]
[392586134,1761696443412,-151.0,0.00021408,7]
[392586135,1761696443433,-151.0,0.00021408,7]
[392586136,1761696443454,-151.0,0.00021408,7]
[392586137,1761696443474,-151.0,0.00021408,7]
[392586138,1761696443495,-151.0,0.00021408,7]
[392586139,1761696443516,-151.0,0.00021408,7]
[392586140,1761696443538,-151.0,0.00021408,7]
[392586141,1761696443558,-151.0,0.00021408,7]
[392586142,1761696443580,-151.0,0.00021408,7]
[392586143,1761696443601,-151.0,0.00021408,7]
[392586144,1761696443623,-151.0,0.00021408,7]
[392586145,1761696443649,-221.245024,0.00021408,7]
[392586146,1761696443671,-151.0,0.00021408,7]
[392586147,1761696443693,-151.0,0.00021408,7]
[392586148,1761696443714,-151.0,0.00021408,7]
[392586149,1761696443736,-151.0,0.00021408,7]
[392586150,1761696443760,-151.0,0.00021408,7]
[392586151,1761696443783,-151.0,0.00021408,7]
[392586152,1761696443805,-151.0,0.00021408,7]
[392586153,1761696443826,-162.000935,0.00021408,7]
[392586154,1761696443848,-61.12732967,0.00021408,7]
[392586156,1761696517842,2000.0,0.00030137,120]
[392586157,1761696602809,9302.213862,0.00017477,2]
[392586158,1761696602833,697.786138,0.00017477,2]
[392586159,1761696631341,200.0,0.00029139,120]
[392586181,1761696632143,-455.61855773,0.00021001,5]
[392586183,1761696632153,-205.83530187,0.00021215,2]
[392586185,1761696632162,-614.59527047,0.00021215,2]
[392586187,1761696632175,-208.22383365,0.00021215,2]
[392586189,1761696632187,-568.76,0.00021298,10]
[392586191,1761696632197,-473.97,0.00021298,10]
[392586193,1761696632206,-394.97,0.00021298,10]
[392586196,1761696632216,-329.14,0.00021298,10]
[392586198,1761696632226,-164.55786584,0.00021307,2]
[392586200,1761696632236,-173.0,0.00021307,2]
[392586202,1761696632245,-5711.47830051,0.00021308,2]
[392586204,1761696632258,-22814.5515614,0.00021308,2]
[392586206,1761696632274,-3759.054144,0.00021308,2]
[392586233,1761696637921,-418.27732067,0.00021307,2]
[392586234,1761696637931,-79.75825889,0.00021307,2]
[392586235,1761696637942,-283.2931856,0.00021307,2]
[392586236,1761696637951,-12617.60012297,0.00021308,2]
[392586237,1761696637963,-99144.56260902,0.00021308,2]
[392586238,1761696637973,-473.06591171,0.00021308,2]
[392586239,1761696637985,-448.15033584,0.00021308,2]
[392586240,1761696637995,-338.7544736,0.00021308,2]
[392586241,1761696638006,-1146.1,0.00021308,2]
[392586242,1761696639112,-138153.63562002,0.00021308,2]
[392586244,1761696640452,-16073.7430818,0.00021308,2]
[392586879,1761696751470,200.0,0.0002803,120]
[392586881,1761696811250,200.0,0.00029183,120]
[392586882,1761696839544,1414.0,0.00017477,2]
[392586883,1761696871066,200.0,0.00028783,120]
[392586884,1761696903152,7888.223862,0.00015,2]
[392586885,1761696903177,6111.776138,0.00015,2]
[392586886,1761696911372,318.84337846,0.0003013,120]
[392586887,1761696930801,200.0,0.00028757,120]
[392586888,1761696987715,3888.233862,0.00017477,2]
[392586889,1761696987736,6111.766138,0.00017477,2]
[392586890,1761697002290,168.68,0.00030137,120]
[392586891,1761697002363,3888.243862,0.00017477,2]
[392586892,1761697002386,6111.756138,0.00017477,2]
[392586893,1761697010444,3888.253862,0.00017477,2]
[392586894,1761697010468,6111.746138,0.00017477,2]
[392586895,1761697036375,1416.24,0.00017429,2]
[392586896,1761697050811,200.0,0.00028404,120]
[392586897,1761697120115,5008.0,0.00030136,120]
[392586898,1761697170790,200.0,0.00028827,120]
[392586899,1761697350729,200.0,0.00028513,120]
[392586900,1761697471290,200.0,0.00028776,120]
[392586901,1761697530833,200.0,0.00028315,120]
[392586903,1761697637137,-811.6858447,0.0002028,2]
[392586904,1761697637157,-158.23053729,0.00020441,2]
[392586905,1761697637178,-153.30837021,0.00020541,2]
[392586906,1761697637197,-197.46540794,0.00020801,2]
[392586907,1761697637217,-157.14521272,0.00021007,2]
[392586908,1761697637236,-164.13438117,0.00021205,2]
[392586909,1761697637257,-585.35382294,0.00021208,2]
[392586910,1761697637277,-158.73,0.00021298,10]
[392586911,1761697637300,-247.83,0.00021298,10]
[392586912,1761697637325,-206.53,0.00021298,10]
[392586913,1761697637346,-172.11,0.00021298,10]
[392586914,1761697637367,-300.0,0.00021302,2]
[392586915,1761697637393,-300.0,0.00021303,2]
[392586916,1761697637416,-300.0,0.00021303,2]
[392586917,1761697637631,-1200.0,0.00021303,2]
[392586918,1761697637655,-300.0,0.00021303,2]
[392586919,1761697637676,-661.18425653,0.00021303,2]
[392586920,1761697637699,-500.0,0.00021303,2]
[392586921,1761697637722,-500.0,0.00021303,2]
[392586922,1761697637745,-500.0,0.00021303,2]
[392586923,1761697637765,-399.04326509,0.00021303,2]
[392586924,1761697637786,-500.0,0.00021303,2]
[392586925,1761697637806,-500.0,0.00021303,2]
[392586926,1761697637828,-500.0,0.00021303,2]
[392586927,1761697637848,-158.3396506,0.00021303,2]
[392586928,1761697637870,-500.0,0.00021303,2]
[392586929,1761697637893,-500.0,0.00021303,2]
[392586930,1761697637915,-152.29664857,0.00021303,2]
[392586931,1761697637938,-500.0,0.00021303,2]
[392586932,1761697637960,-500.0,0.00021303,2]
[392586933,1761697637983,-285.1972465,0.00021303,2]
[392586934,1761697638007,-500.0,0.00021303,2]
[392586935,1761697638029,-500.0,0.00021303,2]
[392586936,1761697638052,-535.46591274,0.00021303,2]
[392586937,1761697638073,-500.0,0.00021303,2]
[392586938,1761697638096,-500.0,0.00021303,2]
[392586939,1761697638118,-500.0,0.00021303,2]
[392586940,1761697638141,-500.0,0.00021303,2]
[392586941,1761697638164,-500.0,0.00021303,2]
[392586942,1761697638186,-500.0,0.00021303,2]
[392586943,1761697638208,-500.0,0.00021303,2]
[392586944,1761697638232,-500.0,0.00021303,2]
[392586945,1761697638254,-500.0,0.00021303,2]
[392586946,1761697638276,-500.0,0.00021303,2]
[392586947,1761697638298,-301.05472119,0.00021303,2]
[392586948,1761697638324,-500.0,0.00021303,2]
[392586949,1761697638346,-500.0,0.00021303,2]
[392586950,1761697638369,-500.0,0.00021303,2]
[392586951,1761697638391,-500.0,0.00021303,2]
[392586952,1761697638413,-500.0,0.00021303,2]
[392586953,1761697638434,-3826.38759431,0.00021304,2]
[392586955,1761697650079,-709.15908103,0.00021304,2]
[392586957,1761697712016,8583.77,0.0001737,2]
[392586958,1761697712038,10000.01,0.0001737,2]
[392586959,1761697712059,10000.01,0.0001737,2]
[392586960,1761697712081,8148.86854213,0.0001737,2]
[392586961,1761697754118,-1149.499999,0.00018,2]
[392586962,1761697754141,-76.58606085,0.00019154,2]
[392586988,1761697832072,-76.39502942,0.00019154,2]
[392586989,1761697832082,-994.150361,0.00020307,2]
[392586990,1761697832091,-180.51768652,0.00021154,2]
[392586991,1761697832100,-512.18459509,0.00021207,2]
[392586992,1761697832110,-500.0,0.00021303,2]
[392586993,1761697832119,-376.64545731,0.00021303,2]
[392586994,1761697832128,-300.0,0.00021305,2]
[392586995,1761697832137,-500.0,0.00021305,2]
[392586996,1761697832148,-500.0,0.00021305,2]
[392586997,1761697832158,-500.0,0.00021305,2]
[392586998,1761697832166,-500.0,0.00021305,2]
[392586999,1761697832175,-500.0,0.00021305,2]
[392587000,1761697832184,-500.0,0.00021305,2]
[392587001,1761697832193,-500.0,0.00021305,2]
[392587002,1761697832203,-500.0,0.00021305,2]
[392587003,1761697832212,-421.44661971,0.00021305,2]
[392587004,1761697832222,-500.0,0.00021305,2]
[392587005,1761697832230,-170.60732364,0.00021305,2]
[392587006,1761697832239,-476.13302739,0.00021305,2]
[392587007,1761697832248,-422.33941347,0.00021305,2]
[392587008,1761697832257,-500.0,0.00021306,2]
[392587009,1761697832266,-500.0,0.00021306,2]
[392587010,1761697832275,-152.20898895,0.00021306,2]
[392587011,1761697832284,-8711.6361337,0.00021306,2]
[392587012,1761697832295,-29184.54201666,0.00021306,2]
[392587013,1761697832304,-500.0,0.00021307,2]
[392587014,1761697832313,-151.0,0.00021307,2]
[392587015,1761697832322,-500.0,0.00021307,2]
[392587016,1761697832331,-500.0,0.00021307,2]
[392587017,1761697832339,-500.0,0.00021307,2]
[392587018,1761697832348,-606.96065949,0.00021307,2]
[392587019,1761697832358,-58657.31543436,0.00021308,2]
[392587020,1761697832369,-10661.98840477,0.00021308,2]
[392587021,1761697832379,-641.62856431,0.00021308,2]
[392587022,1761697832391,-305.59223011,0.00021308,2]
[392587054,1761697838534,-2803.49920806,0.00021308,2]
[392587057,1761697840349,-3692.09645172,0.00021308,2]
[392587058,1761697840359,-256.7969353,0.00021308,2]
[392587059,1761697840368,-196.9314291,0.00021308,2]
[392587060,1761697840377,-640.6280741,0.00021308,2]
[392587061,1761697840387,-8469.297604,0.00021308,2]
[392587062,1761697840397,-167.0,0.0002134,2]
[392587063,1761697840406,-331.0,0.0002134,2]
[392587064,1761697840416,-331.0,0.0002134,2]
[392587065,1761697840425,-331.0,0.0002134,2]
[392587066,1761697840435,-331.0,0.0002134,2]
[392587067,1761697840444,-331.0,0.0002134,2]
[392587068,1761697840454,-331.0,0.0002134,2]
[392587069,1761697840464,-331.0,0.0002134,2]
[392587070,1761697840474,-331.0,0.0002134,2]
[392587071,1761697840483,-331.0,0.0002134,2]
[392587072,1761697840492,-331.0,0.0002134,2]
[392587073,1761697840502,-275.69534851,0.0002134,2]
[392587074,1761697840511,-151.0,0.00021358,7]
[392587075,1761697840521,-151.0,0.00021358,7]
[392587076,1761697840530,-151.0,0.00021358,7]
[392587077,1761697840539,-231.130227,0.00021358,7]
[392587078,1761697840548,-231.130227,0.00021358,7]
[392587079,1761697840557,-151.0,0.00021358,7]
[392587080,1761697840566,-231.130227,0.00021358,7]
[392587081,1761697840575,-231.130227,0.00021358,7]
[392587082,1761697840584,-151.0,0.00021358,7]
[392587083,1761697840593,-151.0,0.00021358,7]
[392587084,1761697840602,-151.0,0.00021358,7]
[392587085,1761697840611,-151.0,0.00021358,7]
[392587086,1761697840621,-151.0,0.00021358,7]
[392587087,1761697840635,-151.0,0.00021358,7]
[392587088,1761697840645,-151.0,0.00021358,7]
[392587089,1761697840654,-151.0,0.00021358,7]
[392587090,1761697840664,-151.0,0.00021358,7]
[392587091,1761697840674,-151.0,0.00021358,7]
[392587092,1761697840685,-151.0,0.00021358,7]
[392587093,1761697840695,-151.0,0.00021358,7]
[392587094,1761697840705,-169.997749,0.00021358,7]
[392587095,1761697840715,-169.997749,0.00021358,7]
[392587096,1761697840725,-169.997749,0.00021358,7]
[392587097,1761697840734,-151.0,0.00021358,7]
[392587098,1761697840743,-169.997749,0.00021358,7]
[392587099,1761697840752,-165.0,0.00021358,2]
[392587100,1761697840762,-167.0,0.00021358,2]
[392587101,1761697840771,-165.0,0.00021358,2]
[392587102,1761697840781,-300.55584418,0.00021358,2]
[392587103,1761697840791,-165.0,0.00021358,2]
[392587104,1761697840802,-166.0,0.00021358,2]
[392587105,1761697840811,-167.0,0.00021358,2]
[392587106,1761697840820,-165.0,0.00021358,2]
[392587107,1761697840830,-166.0,0.00021358,2]
[392587108,1761697840839,-168.55177537,0.00021358,2]
[392587109,1761697840848,-166.0,0.00021358,2]
[392587110,1761697840857,-151.0,0.00021358,7]
[392587111,1761697840867,-273.519545,0.00021358,7]
[392587112,1761697840876,-151.0,0.00021358,7]
[392587113,1761697840885,-151.0,0.00021358,7]
[392587114,1761697840894,-151.0,0.00021358,7]
[392587115,1761697840904,-151.0,0.00021358,7]
[392587116,1761697840913,-151.0,0.00021358,7]
[392587117,1761697840924,-151.0,0.00021358,7]
[392587118,1761697840934,-151.0,0.00021358,7]
[392587119,1761697840943,-151.0,0.00021358,7]
[392587120,1761697840953,-197.294834,0.00021358,7]
[392587121,1761697840965,-197.294834,0.00021358,7]
[392587122,1761697840974,-197.294834,0.00021358,7]
[392587123,1761697840983,-197.294834,0.00021358,7]
[392587124,1761697840992,-151.0,0.00021358,7]
[392587125,1761697841001,-151.0,0.00021358,7]
[392587126,1761697841011,-197.294834,0.00021358,7]
[392587127,1761697841020,-197.294834,0.00021358,7]
[392587128,1761697841030,-197.294834,0.00021358,7]
[392587129,1761697841040,-197.294834,0.00021358,7]
[392587130,1761697841051,-151.0,0.00021358,7]
[392587131,1761697841060,-151.0,0.00021358,7]
[392587132,1761697841069,-151.0,0.00021358,7]
[392587133,1761697841078,-151.0,0.00021358,7]
[392587134,1761697841087,-151.0,0.00021358,7]
[392587135,1761697841098,-151.0,0.00021358,7]
[392587136,1761697841108,-151.0,0.00021358,7]
[392587137,1761697841117,-151.0,0.00021358,7]
[392587138,1761697841126,-151.0,0.00021358,7]
[392587139,1761697841135,-151.0,0.00021358,7]
[392587140,1761697841144,-151.0,0.00021358,7]
[392587141,1761697841153,-151.0,0.00021358,7]
[392587142,1761697841162,-151.0,0.00021358,2]
[392587143,1761697841171,-151.0,0.00021358,2]
[392587144,1761697841180,-152.82338,0.00021358,7]
[392587145,1761697841190,-151.0,0.00021358,7]
[392587146,1761697841200,-151.0,0.00021358,7]
[392587147,1761697841211,-151.0,0.00021358,2]
[392587148,1761697841220,-151.0,0.00021358,2]
[392587149,1761697841229,-151.0,0.00021358,7]
[392587150,1761697841238,-151.0,0.00021358,7]
[392587151,1761697841248,-151.0,0.00021358,7]
[392587152,1761697841258,-151.0,0.00021358,7]
[392587153,1761697841267,-151.0,0.00021358,7]
[392587154,1761697841276,-151.0,0.00021358,7]
[392587155,1761697841285,-151.0,0.00021358,7]
[392587156,1761697841294,-151.0,0.00021358,7]
[392587157,1761697841304,-351.379604,0.00021358,7]
[392587158,1761697841313,-351.379604,0.00021358,7]
[392587159,1761697841323,-151.0,0.00021358,7]
[392587160,1761697841333,-151.0,0.00021358,7]
[392587161,1761697841342,-351.379604,0.00021358,7]
[392587162,1761697841351,-351.379604,0.00021358,7]
[392587163,1761697841361,-151.0,0.00021358,7]
[392587164,1761697841370,-151.0,0.00021358,7]
[392587165,1761697841380,-351.379604,0.00021358,7]
[392587166,1761697841389,-351.379604,0.00021358,7]
[392587167,1761697841399,-351.379604,0.00021358,7]
[392587168,1761697841408,-151.0,0.00021358,2]
[392587169,1761697841418,-351.379604,0.00021358,7]
[392587170,1761697841428,-151.0,0.00021358,2]
[392587171,1761697841439,-151.0,0.00021358,2]
[392587172,1761697841449,-151.0,0.00021358,2]
[392587173,1761697841458,-162.62634754,0.00021358,2]
[392587174,1761697841468,-151.0,0.00021358,2]
[392587175,1761697841477,-151.0,0.00021358,2]
[392587176,1761697841486,-155.96132847,0.00021358,2]
[392587177,1761697841495,-151.0,0.00021358,7]
[392587178,1761697841505,-151.0,0.00021358,7]
[392587179,1761697841514,-151.0,0.00021358,7]
[392587180,1761697841523,-151.0,0.00021358,7]
[392587181,1761697841532,-151.0,0.00021358,7]
[392587182,1761697841541,-151.0,0.00021358,7]
[392587183,1761697841550,-151.0,0.00021358,7]
[392587184,1761697841559,-151.0,0.00021358,7]
[392587185,1761697841568,-3339.119209,0.00021358,7]
[392587186,1761697841577,-3339.119209,0.00021358,7]
[392587187,1761697841586,-3339.119209,0.00021358,7]
[392587188,1761697841595,-3339.119209,0.00021358,7]
[392587189,1761697841604,-151.0,0.00021358,7]
[392587190,1761697841613,-151.0,0.00021358,7]
[392587191,1761697841625,-3339.119209,0.00021358,7]
[392587192,1761697841634,-3339.119209,0.00021358,7]
[392587193,1761697841643,-151.0,0.00021358,7]
[392587194,1761697841652,-151.0,0.00021358,7]
[392587195,1761697841662,-3339.119209,0.00021358,7]
[392587196,1761697841671,-3339.119209,0.00021358,7]
[392587197,1761697841683,-151.0,0.00021358,7]
[392587198,1761697841692,-151.0,0.00021358,7]
[392587199,1761697841702,-151.0,0.00021358,7]
[392587200,1761697841712,-151.0,0.00021358,7]
[392587201,1761697841722,-151.0,0.00021358,7]
[392587202,1761697841731,-217.681047,0.00021358,7]
[392587203,1761697841741,-217.681047,0.00021358,7]
[392587204,1761697841751,-217.681047,0.00021358,7]
[392587205,1761697841761,-217.681047,0.00021358,7]
[392587206,1761697841771,-151.0,0.00021358,7]
[392587207,1761697841780,-151.0,0.00021358,7]
[392587208,1761697841790,-217.681047,0.00021358,7]
[392587209,1761697841801,-217.681047,0.00021358,7]
[392587210,1761697841810,-217.681047,0.00021358,7]
[392587211,1761697841819,-217.681047,0.00021358,7]
[392587212,1761697841829,-151.0,0.00021358,7]
[392587213,1761697841838,-151.0,0.00021358,7]
[392587214,1761697841847,-151.0,0.00021358,7]
[392587215,1761697841855,-151.0,0.00021358,7]
[392587216,1761697841865,-151.0,0.00021358,7]
[392587217,1761697841874,-275.955144,0.00021358,7]
[392587218,1761697841883,-151.0,0.00021358,7]
[392587219,1761697841894,-209.688996,0.00021358,7]
[392587220,1761697841904,-167.30796,0.00021358,7]
[392587221,1761697841913,-500.0,0.00021358,2]
[392587222,1761697842056,-151.0,0.00021362,2]
[392587223,1761697842066,-500.0,0.00021362,2]
[392587224,1761697842075,-500.0,0.00021373,2]
[392587225,1761697842084,-500.0,0.00021373,2]
[392587226,1761697842094,-500.0,0.00021373,2]
[392587227,1761697842103,-151.0,0.00021373,7]
[392587228,1761697842112,-151.0,0.00021373,7]
[392587229,1761697842121,-151.0,0.00021373,7]
[392587230,1761697842130,-151.0,0.00021373,7]
[392587231,1761697842140,-151.0,0.00021373,7]
[392587232,1761697842148,-151.0,0.00021373,7]
[392587233,1761697842157,-169.997749,0.00021373,7]
[392587234,1761697842166,-169.997749,0.00021373,7]
[392587235,1761697842175,-169.997749,0.00021373,7]
[392587236,1761697842184,-151.0,0.00021373,7]
[392587237,1761697842194,-169.997749,0.00021373,7]
[392587238,1761697842203,-151.0,0.00021373,7]
[392587239,1761697842221,-151.0,0.00021373,7]
[392587240,1761697842232,-151.0,0.00021373,7]
[392587241,1761697842242,-252.263206,0.00021373,7]
[392587242,1761697842253,-151.0,0.00021373,2]
[392587243,1761697842263,-151.0,0.00021373,7]
[392587244,1761697842273,-151.0,0.00021373,2]
[392587245,1761697842283,-151.0,0.00021373,7]